Workbook

Sheet от 1года до 3 лет
A1: Утверждаю | H1: Согласовано
A2: Директор ООО "ФУДСОЦСЕРВИС" | H2: Руководитель дошкольной образовательной
A3: Харламова Э.Р. | H3: организации
E6: Примерное 12-дневное меню
E7: для организации питания детей в дошкольных учреждениях
E8: с 12 - часовым пребыванием от 1 года до 3 лет
A10: День 1 - ый
A11: Наименование блюд и | C11: Масса | D11: Кол - во | E11: Кол - во | F11: Пищевые вещества | I11: Энергетическая | J11: витамин | K11: Сборник
A12: продуктов | C12: порции | D12: (в гр ) | E12: (в гр ) | I12: ценность | K12: рецептур
D13: брутто | E13: нетто | F13: белки | G13: жиры | H13: угл-ды | I13: Ккал | J13: С
B14: ЗАВТРАК
A15: Каша "Дружба" молочная с маслом сливочным | C15: 140/3 | F15: 4.22 | G15: 4.92 | H15: 23.38 | I15: 155.56 | J15: 0.60 | K15: ТТК №7Д
B16: Крупа рисовая | D16: 10 | E16: 10
B17: Крупа пшенная | D17: 7.5 | E17: 7.5
B18: Молоко | D18: 75 | E18: 75
B19: Вода | D19: 48 | E19: 48
B20: Сахар | D20: 2 | E20: 2
B21: соль иодированная | D21: 0.4 | E21: 0.4
B22: Масло сливочное | D22: 3 | E22: 3
A23: Кофейный напиток с молоком | C23: 180/6 | F23: 2.85 | G23: 2.41 | H23: 10.35 | I23: 74.58 | J23: 1.17 | K23: №414 Дели 2016
B24: Кофейный напиток | D24: 2.50 | E24: 2.50
B25: Сахар | D25: 6.00 | E25: 6.00
B26: Молоко | D26: 90.00 | E26: 90.00
B27: Вода | D27: 108.00 | E27: 108.00
A28: Бутерброд с сыром, маслом сливочным | C28: 25/5/5 | F28: 2.53 | G28: 5.69 | H28: 12.92 | I28: 115.67 | J28: 0.07 | K28: №3 сб дошк 2016
B29: Батон нарезной | D29: 25 | E29: 25
B30: Сыр | D30: 5.1 | E30: 5
B31: Масло сливочное | D31: 5 | E31: 5
A32: Итого: | C32: 364 | F32: =SUM(F15:F31) -> 9.60 | G32: =SUM(G15:G31) -> 13.02 | H32: 46.65 | I32: 345.81 | J32: 1.84
B33: 2 - ой ЗАВТРАК
A34: Кисломолочный напиток | C34: 150/2 | F34: 4.35 | G34: 3.75 | H34: 8.00 | I34: 83.00 | J34: 1.05 | K34: №420 Сб дошк 2016
A35: (Кефир,ряженка,катык) | B35: кисломолочный напиток | D35: 155 | E35: 150
B36: сахар | D36: 2 | E36: 2
A37: Итого: | C37: 152 | F37: =F34 -> 4.35 | G37: =G34 -> 3.75 | H37: =H34 -> 8.00 | I37: =I34 -> 83.00 | J37: =J34 -> 1.05
B38: ОБЕД
A39: Салат из припущенной моркови с яблоками | C39: 40 | F39: 0.43 | G39: 0.07 | H39: 3.45 | I39: 16.16 | K39: №39 дошк. СБ 2016
B40: морковь | D40: 38.12 | E40: 30.50
B41: яблоки | D41: 11.40 | E41: 10.00
B42: сахар | D42: 2.00 | E42: 2.00
A43: Суп вермишелевый с картофелем с мясными фрикадельками | C43: 150/10 | F43: 3.61 | G43: 2.87 | H43: 10.55 | I43: 90.56 | J43: 5.19 | K43: №88 СБ дошк 2016
B44: говядина (котлетное мясо) | D44: 11.97 | E44: 11.40
B45: или фарш говяжий | D45: 11.97 | E45: 11.40
B46: Лук репчатый | D46: 1.19 | E46: 1.00
B47: Яйцо | D47: 0.96 | E47: 0.80
B48: Вода для фарша | D48: 1.00 | E48: 1.00
B49: соль иодированная | D49: 0.10 | E49: 0.10
B50: масса полуфабриката фрикаделек | E50: 14.3
B51: масса готовых фрикаделек | E51: 10
B52: Картофель | D52: 59.90 | E52: 45.00
B53: Морковь | D53: 7.50 | E53: 6.00
B54: Лук репчатый | D54: 7.14 | E54: 6.00
B55: вермишель | D55: 6.00 | E55: 6.00
B56: Масло растительное | D56: 3.00 | E56: 3.00
B57: соль иодированная | D57: 0.50 | E57: 0.50
B58: Вода | D58: 105.00 | E58: 105.00
A59: Котлеты рубленые из говядины | C59: 50 | F59: 8.42 | G59: 9.35 | H59: 8.22 | I59: 150.76 | K59: СБ дошкольн. №299, 2016
B60: говядина (котлетное мясо) | D60: 36.57 | E60: 35.00
B61: или фарш говяжий | D61: 36.57 | E61: 35.00
B62: Лук репчатый | D62: 10.40 | E62: 8.75
B63: Хлеб пшеничный | D63: 8.13 | E63: 8.13
B64: вода питьевая | D64: 10.00 | E64: 10.00
B65: сухари панировочные | D65: 2.80 | E65: 2.80
B66: соль иодированная | D66: 0.40 | E66: 0.40
B67: масса полуфабриката | E67: 62.00
B68: масло растительное | D68: 0.60 | E68: 0.60
A69: Каша гречневая рассыпчатая с овощами с маслом сливочным | C69: 110/2 | F69: 3.21 | G69: 1.62 | H69: 22.36 | I69: 116.60 | J69: 0.41 | K69: №180, сб дошк 2016
B70: крупа гречневая | D70: 47.6 | E70: 47.6
B71: вода питьевая | D71: 71.0 | E71: 71.0
B72: соль иодированная | D72: 0.3 | E72: 0.3
B73: масса каши | E73: 100.0
B74: морковь | D74: 16.5 | E74: 13.2
B75: лук репчатый | D75: 2.0 | E75: 1.7
B76: масса каши с овощами | E76: 110.0
B77: масло сливочное | D77: 2.0 | E77: 2.0
A78: Напиток из сухофруктов | C78: 150 | F78: 0.50 | G78: 0.07 | H78: 14.00 | I78: 60 | J78: 0.54 | K78: №394 Сб дошк 2016
B79: сухофрукты | D79: 12.75 | E79: 12.50
B80: Сахар | D80: 5.00 | E80: 5.00
B81: вода | D81: 152.00 | E81: 152.00
A82: Хлеб пшеничный | C82: 15 | D82: 15.00 | E82: 15.00 | F82: 1.14 | G82: 0.12 | H82: 7.38 | I82: 35.25 | J82: 0.00 | K82: табл 6 стр 134, Дели +, 2012
A83: Хлеб ржаной | C83: 35 | D83: 35 | E83: 35 | F83: 2.31 | G83: 0.42 | H83: 13.85 | I83: 69.23 | K83: табл 6 стр 144, Дели +, 2012
A84: Итого: | C84: =C83+C82+C78+112+C59+150+10+C39 -> 562 | F84: =F83+F82+F78+F69+F59+F43+F39 -> 19.62 | G84: =G83+G82+G78+G69+G59+G43+G39 -> 14.51 | H84: 79.80 | I84: 538.56 | J84: 6.14
B85: УПЛОТНЕННЫЙ ПОЛДНИК
A86: Пудинг рыбный | C86: 45/15 | F86: 8.98 | G86: 2.93 | H86: 4.40 | I86: 80.00 | J86: 0.32 | K86: №286 СБ дошк 2016
B87: рыба (минтай с/м БГ) | D87: 51.54 | E87: 37.9
B88: масса отварной рыбы | E88: 30
B89: Хлеб пшеничный | D89: 6.2 | E89: 6.2
B90: яйцо | D90: 4.8 | E90: 4
B91: молоко | D91: 9 | E91: 9
B92: масло сливочное | D92: 1.7 | E92: 1.7
B93: соль иодированная | D93: 0.3 | E93: 0.3
B94: Масло растительное | D94: 0.8 | E94: 0.8
B95: масса пудинга | E95: 45
B96: Соус молочный
B97: молоко | D97: 7.5 | E97: 7.5
B98: масло сливочное | D98: 0.8 | E98: 0.8
B99: Мука пшеничная | D99: 0.8 | E99: 0.8
B100: Вода | D100: 7.5 | E100: 7.5
B101: Сахар | D101: 0.15 | E101: 0.15
B102: соль иодированная | D102: 0.09 | E102: 0.09
B103: масса соуса | E103: 15
A104: Пюре Картофельное | C104: 120 | F104: 2.45 | G104: 3.84 | H104: 16.35 | I104: 109.80 | J104: 14.53 | K104: №339 СБ дошк 2016
B105: Картофель | D105: 136.80 | E105: 102.60
B106: Молоко | D106: 18.96 | E106: 18.00
B107: Масло сливочное | D107: 4.20 | E107: 4.20
B108: соль иодированная | D108: 0.45 | E108: 0.45
A109: Чай с сахаром | C109: 150/5 | F109: 0.06 | G109: 0.02 | H109: 5.01 | I109: 19.95 | J109: 0.03 | K109: №410, 411 Дели 2016
B110: чай весовой | D110: 0.4 | E110: 0.4
B111: Сахар | D111: 5 | E111: 5
B112: Вода | D112: 150 | E112: 150
A113: Кондитерские изделия | B113: вафли | C113: 20 | D113: 20.00 | E113: 20.00 | F113: 0.75 | G113: 6.10 | H113: 12.50 | I113: 108.50 | K113: табл 6 стр 136, Дели +, 2012
A114: Хлеб пшеничный | C114: 20 | D114: 20.00 | E114: 20.00 | F114: 1.52 | G114: 0.16 | H114: 9.84 | I114: 47.00 | J114: 0.00 | K114: табл 6 стр 134, Дели +, 2012
A115: Фрукты свежие | C115: 100 | D115: 100 | E115: 100 | F115: 0.40 | G115: 0.40 | H115: 9.80 | I115: 47.00 | J115: 10.00 | K115: №386 СБ
A116: (яблоки,или апельсин, или банан,или мандарин) | K116: дошк. 2016
A117: Итого: | C117: 475 | F117: =F86+F104+F109+F113+F114+F115 -> 14.16 | G117: =G86+G104+G109+G113+G114+G115 -> 13.45 | H117: =H86+H104+H109+H113+H114+H115 -> 57.90 | I117: =I86+I104+I109+I113+I114+I115 -> 412.25 | J117: =J86+J104+J109+J113+J114+J115 -> 24.88
A118: ВСЕГО: | C118: =C32+C37+C84+C117 -> 1553 | F118: =F32+F37+F84+F117 -> 47.73 | G118: =G32+G37+G84+G117 -> 44.73 | H118: =H32+H37+H84+H117 -> 192.35 | I118: =I32+I37+I84+I117 -> 1379.62 | J118: =J32+J37+J84+J117 -> 33.91
A120: День 2- ой
A121: Наименование блюд и | C121: Масса | D121: Кол - во | E121: Кол - во | F121: Пищевые вещества | I121: Энергетическая | J121: Витамин | K121: Сборник
A122: продуктов | C122: порции | D122: (в гр ) | E122: (в гр ) | I122: ценность | K122: рецептур
D123: брутто | E123: нетто | F123: белки | G123: жиры | H123: угл-ды | I123: Ккал | J123: С
B124: ЗАВТРАК
A125: Каша полбяная молочная с маслом сливочным | C125: 140/3 | F125: 3.76 | G125: 6.13 | H125: 22.96 | I125: 162.00 | J125: 0.67 | K125: ТТК №1Д
B126: Крупа полбяная | D126: 18 | E126: 18
B127: Молоко | D127: 70 | E127: 70
B128: вода | D128: 53 | E128: 53
B129: Сахар | D129: 2 | E129: 2
B130: соль иодированная | D130: 0.4 | E130: 0.4
B131: Масло сливочное | D131: 3 | E131: 3
A132: Какао с молоком | C132: 180/6 | F132: 3.67 | G132: 3.19 | H132: 10.87 | I132: 90.78 | J132: 1.43 | K132: №416 Дели 2016
B133: Какао-порошок | D133: 2.00 | E133: 2.00
B134: Сахар | D134: 6.00 | E134: 6.00
B135: Молоко | D135: 110.00 | E135: 110.00
B136: Вода | D136: 80.00 | E136: 80.00
A137: Бутерброд с маслом сливочным | C137: 25/5 | F137: 1.92 | G137: 4.36 | H137: 12.92 | I137: 98.50 | K137: №1 Дели 2016
B138: Батон нарезной | D138: 25 | E138: 25
B139: Масло сливочное | D139: 5 | E139: 5
A140: Итого: | C140: 359 | F140: =SUM(F125:F139) -> 9.35 | G140: =SUM(G125:G139) -> 13.67 | H140: 46.75 | I140: 351.28 | J140: 2.10
B141: 2 - ой ЗАВТРАК
A142: Кисломолочный напиток | C142: 150 | F142: 4.35 | G142: 3.75 | H142: 6.30 | I142: 76.00 | J142: 0.45 | K142: №420 Сб дошк 2016
A143: (кефир,ряженка,катык) | B143: кисломолочный напиток | D143: 155 | E143: 150
A144: Итого: | C144: 150 | F144: =F142 -> 4.35 | G144: =G142 -> 3.75 | H144: =H142 -> 6.30 | I144: =I142 -> 76.00 | J144: =J142 -> 0.45
B145: ОБЕД
A146: Салат с картофелем и солеными огурцами | C146: 40 | F146: 0.49 | G146: 3.14 | H146: 3.58 | I146: 44.56 | K146: №23 сб дошколь. 2016
B147: Картофель | D147: 21.92 | E147: 16.00
B148: морковь | D148: 10.24 | E148: 8.00
B149: огурцы соленые | D149: 21.84 | E149: 12.00
B150: лук репчатый | D150: 2.40 | E150: 2.00
B151: масло растительное | D151: 2.00 | E151: 2.00
A152: Борщ со свежей капустой, картофелем на курином бульоне,со сметаной | C152: 150/5 | F152: 1.81 | G152: 3.70 | H152: 6.74 | I152: 70.31 | J152: 6.43 | K152: №63, сб дошк 2016
B153: Капуста свежая | D153: 15.00 | E153: 12.0
B154: Картофель | D154: 15.96 | E154: 12.0
B155: Морковь | D155: 9.38 | E155: 7.5
B156: Лук репчатый | D156: 7.14 | E156: 6.0
B157: Свекла | D157: 30.72 | E157: 24.0
B158: Масло растительное | D158: 3.00 | E158: 3.0
B159: Сахар | D159: 0.15 | E159: 0.15
B160: Томатная паста | D160: 1.50 | E160: 1.5
B161: соль иодированная | D161: 0.50 | E161: 0.5
B162: Бульон | D162: 120.00 | E162: 120.0
B163: Сметана | D163: 5.00 | E163: 5.0
A164: Плов из отварной птицы | C164: 150 | F164: 12.71 | G164: 7.85 | H164: 26.80 | I164: 229.00 | J164: 4.52 | K164: №321, сб дошк 2016
B165: цыплята-бройлеры с/м | D165: 58.50 | E165: 55.2
B166: масса отварной птицы | E166: 24.0
B167: масло сливочное | D167: 5.0 | E167: 5.0
B168: Лук репчатый | D168: 8.9 | E168: 7.5
B169: Морковь | D169: 12.5 | E169: 10.0
B170: Крупа рисовая | D170: 32.0 | E170: 32.0
B171: вода | D171: 65.0 | E171: 65.0
B172: соль иодированная | D172: 0.5 | E172: 0.5
B173: масса гарнира | E173: 126.0
A174: Компот из свежих яблок | C174: 150 | F174: 0.12 | G174: 0.12 | H174: 20.91 | I174: 85.95 | J174: 2.85 | K174: №342 сб шк 2017
B175: яблоки свежие | D175: 28.50 | E175: 25.00
B176: сахар | D176: 5.00 | E176: 5.00
B177: вода | D177: 152.00 | E177: 152.00
A178: Хлеб пшеничный | C178: 20 | D178: 20 | E178: 20 | F178: 1.52 | G178: 0.16 | H178: 9.84 | I178: 47.00 | J178: 0.00 | K178: табл 6 стр 134, Дели +, 2012
A179: Хлеб ржаной | C179: 35 | D179: 35 | E179: 35 | F179: 2.31 | G179: 0.42 | H179: 13.85 | I179: 69.23 | K179: табл 6 стр 144, Дели +, 2012
A180: Итого: | C180: =C179+C178+C174+C164+155+C146 -> 550 | F180: =F179+F178+F174+F164+F152+F146 -> 18.96 | G180: =G179+G178+G174+G164+G152+G146 -> 15.39 | H180: 81.71 | I180: 546.05 | J180: 13.80
B181: УПЛОТНЕННЫЙ ПОЛДНИК
A182: Запеканка творожная с молоком сгущенным | C182: 110/20 | F182: 20.73 | G182: 16.98 | H182: 29.49 | I182: 353.40 | J182: 0.49 | K182: №251 сб дошк 2016
B183: Творог | D183: 103.2 | E183: 101.2
B184: крупа манная | D184: 6.6 | E184: 6.6
B185: Яйцо | D185: 5.28 | E185: 4.4
B186: Сахар | D186: 8.8 | E186: 8.8
B187: Сметана | D187: 4.4 | E187: 4.4
B188: Масло сливочное | D188: 4.4 | E188: 4.4
B189: Сухари панировочные | D189: 4.4 | E189: 4.4
B190: соль иодированная | D190: 0.55 | E190: 0.55
B191: молоко сгущенное | D191: 20.40 | E191: 20.00
A192: Чай с сахаром и лимоном | C192: 150/5/5 | F192: 0.10 | G192: 0.02 | H192: 5.18 | I192: 21.78 | J192: 2.24 | K192: №412 Дели 2016
B193: чай весовой | D193: 0.4 | E193: 0.4
B194: Сахар | D194: 5 | E194: 5
B195: лимон | D195: 5.55 | E195: 5
B196: Вода | D196: 150.0 | E196: 150.0
A197: Булочка дорожная | C197: 35 | F197: 2.73 | G197: 4.90 | H197: 18.25 | I197: 126.70 | K197: №453 сб дошк 2016
B198: Мука пшеничная | D198: 21.35 | E198: 21.00
B199: мука пшеничная на подпыл | D199: 0.70 | E199: 0.70
B200: Сахар | D200: 4.20 | E200: 4.20
B201: Масло сливочное | D201: 4.55 | E201: 4.55
B202: соль иодированная | D202: 0.21 | E202: 0.21
B203: дрожжи сухие | D203: 0.14 | E203: 0.14
B204: вода | D204: 10.70 | E204: 10.70
... 995 more rows

Sheet от 3 до 7 лет
A1: Утверждаю | H1: Согласовано
A2: Директор ООО "ФУДСОЦСЕРВИС" | H2: Руководитель дошкольной образовательной
A3: Харламова Э.Р. | H3: организации
C5: Примерное 12-дневное меню
C6: для организации питания детей в дошкольных учреждениях
C7: с 12 - часовым пребыванием от 3 до 7 лет
A9: День 1 - ый
A10: Наименование блюд и | C10: Масса | D10: Кол - во | E10: Кол - во | F10: Пищевые вещества | I10: Энергетическая | J10: Витамин | K10: Сборник рецептур
A11: продуктов | C11: порции | D11: (в гр ) | E11: (в гр ) | I11: ценность
D12: брутто | E12: нетто | G12: жиры | H12: угл-ды | I12: Ккал | J12: С
B13: ЗАВТРАК
A14: Каша "Дружба" молочная с маслом сливочным | C14: 180/3 | F14: 5.34 | G14: 8.40 | H14: 29.46 | I14: 215.85 | J14: 0.86 | K14: ТТК №7Д
B15: Крупа рисовая | D15: 13.50 | E15: 13.50
B16: Крупа пшенная | D16: 10.00 | E16: 10.00
B17: Молоко | D17: 90.00 | E17: 90.00
B18: Вода | D18: 68.00 | E18: 68.00
B19: Сахар | D19: 2.50 | E19: 2.50
B20: соль иодированная | D20: 0.50 | E20: 0.50
B21: Масло сливочное | D21: 3 | E21: 3
A22: Кофейный напиток с молоком | C22: 180/6 | F22: 2.85 | G22: 2.41 | H22: 10.35 | I22: 74.58 | J22: 1.17 | K22: №414 Дели 2016
B23: Кофейный напиток | D23: 2.50 | E23: 2.50
B24: Сахар | D24: 6.00 | E24: 6.00
B25: Молоко | D25: 90.00 | E25: 90.00
B26: Вода | D26: 108.00 | E26: 108.00
A27: Бутерброд с сыром, маслом сливочным | C27: 30/5/5 | F27: 3.61 | G27: 5.83 | H27: 15.49 | I27: 128.77 | J27: 0.07 | K27: №3 сб дошк 2016
B28: Батон нарезной | D28: 30.00 | E28: 30.00
B29: Сыр | D29: 5.10 | E29: 5.00
B30: Масло сливочное | D30: 5.00 | E30: 5.00
A31: Итого: | C31: 409 | F31: =F27+F22+F14 -> 11.80 | G31: =G27+G22+G14 -> 16.64 | H31: 55.30 | I31: 419.20 | J31: 2.10
B32: 2 - ой ЗАВТРАК
A33: Кисломолочный напиток | C33: 180/3 | F33: 5.22 | G33: 4.50 | H33: 10.19 | I33: 102.00 | J33: 1.26 | K33: №420 СБ дошк 2016
A34: (Кефир,ряженка,катык) | B34: кисломолочный напиток | D34: 185.00 | E34: 180.00
B35: сахар | D35: 3.00 | E35: 3.00
A36: Итого: | C36: 183 | F36: =F33 -> 5.22 | G36: =G33 -> 4.50 | H36: 10.19 | I36: 102.00 | J36: 1.26
B37: ОБЕД
A38: Салат из припущенной моркови с яблоками | C38: 60 | F38: 0.65 | G38: 0.11 | H38: 5.18 | I38: 24.24 | K38: №39 дошк. СБ 2016
B39: морковь | D39: 57.25 | E39: 45.80
B40: яблоки | D40: 17.10 | E40: 15.00
B41: сахар | D41: 3.00 | E41: 3.00
A42: Суп вермишелевый с картофелем с мясными фрикадельками | C42: 180/10 | F42: 4.93 | G42: 3.80 | H42: 12.68 | I42: 114.56 | J42: 6.18 | K42: №88 сб дошк 2016
B43: говядина (котлетное мясо) | D43: 11.97 | E43: 11.40
B44: или фарш говяжий | D44: 11.97 | E44: 11.40
B45: Лук репчатый | D45: 1.19 | E45: 1.00
B46: Яйцо | D46: 0.96 | E46: 0.80
B47: Вода для фарша | D47: 1.00 | E47: 1.00
B48: соль иодированная | D48: 0.10 | E48: 0.10
B49: Масса полуфабриката | E49: 14.30
B50: масса готовых фрикаделек | E50: 10.00
B51: Картофель | D51: 79.80 | E51: 60.00
B52: Морковь | D52: 10.00 | E52: 8.00
B53: Лук репчатый | D53: 9.52 | E53: 8.00
B54: вермишель | D54: 8.00 | E54: 8.00
B55: Масло растительное | D55: 4.00 | E55: 4.00
B56: соль иодированная | D56: 0.70 | E56: 0.70
B57: Вода | D57: 140.00 | E57: 140.00
A58: Котлеты рубленые из говядины | C58: 70 | F58: 11.79 | G58: 13.09 | H58: 11.51 | I58: 211.06 | J58: 0.84 | K58: №299 СБ дошкольн., 2016
B59: говядина (котлетное мясо) | D59: 51.16 | E59: 49.00
B60: или фарш говяжий | D60: 51.16 | E60: 49.00
B61: Лук репчатый | D61: 14.64 | E61: 12.30
B62: Хлеб пшеничный | D62: 11.00 | E62: 11.00
B63: вода питьевая | D63: 14.70 | E63: 14.70
B64: сухари панировочные | D64: 4.00 | E64: 4.00
B65: соль иодированная | D65: 0.70 | E65: 0.70
B66: масса полуфабриката | E66: 84.00
B67: масло растительное | D67: 0.80 | E67: 0.80
A68: Каша гречневая рассыпчатая с овощами с маслом сливочным | C68: 130/3 | F68: 4.09 | G68: 5.97 | H68: 20.33 | I68: 142.30 | J68: 1.36 | K68: №180, сб дошк 2016
B69: крупа гречневая | D69: 54.70 | E69: 54.70
B70: вода питьевая | D70: 82.00 | E70: 82.00
B71: соль иодированная | D71: 0.33 | E71: 0.33
B72: масса каши | E72: 115.00
B73: морковь | D73: 22.00 | E73: 17.00
B74: лук репчатый | D74: 2.40 | E74: 2.00
B75: масса каши с овощами | E75: 130.00
B76: масло сливочное | D76: 3.00 | E76: 3.00
A77: Напиток из сухофруктов | C77: 180 | F77: 0.60 | G77: 0.08 | H77: 16.81 | I77: 72 | J77: 0.65 | K77: №394 Сб дошк 2016
B78: сухофрукты | D78: 15.30 | E78: 15.00
B79: Сахар | D79: 6.00 | E79: 6.00
B80: вода | D80: 183.00 | E80: 183.00
A81: Хлеб пшеничный | C81: 25 | D81: 25.00 | E81: 25.00 | F81: 1.90 | G81: 0.20 | H81: 12.30 | I81: 58.75 | J81: 0.00 | K81: табл 6 стр 134, Дели +, 2012
A82: Хлеб ржаной | C82: 45 | D82: 45.00 | E82: 45.00 | F82: 2.97 | G82: 0.54 | H82: 17.84 | I82: 89.19 | K82: табл 6 стр 144, Дели +, 2012
A83: Итого: | C83: =C82+C81+C77+133+C58+180+10+C38 -> 703 | F83: =F82+F81+F77+F68+F58+F42+F38 -> 26.93 | G83: =G82+G81+G77+G68+G58+G42+G38 -> 23.79 | H83: 96.65 | I83: 711.62 | J83: 9.03
B84: УПЛОТНЕННЫЙ ПОЛДНИК
A85: Пудинг рыбный | C85: 60/20 | F85: 11.97 | G85: 3.91 | H85: 5.87 | I85: 106.67 | J85: 0.46 | K85: №286 СБ дошк 2016
B86: рыба (минтай с/м БГ) | D86: 68.34 | E86: 50.25
B87: масса отварной рыбы | E87: 39.75
B88: Хлеб пшеничный | D88: 8.25 | E88: 8.25
B89: яйцо | D89: 6.3 | E89: 5.25
B90: молоко | D90: 12 | E90: 12
B91: масло сливочное | D91: 2.25 | E91: 2.25
B92: соль иодированная | D92: 0.4 | E92: 0.4
B93: Масло растительное | D93: 1 | E93: 1
B94: масса пудинга | E94: 60
B95: Соус молочный
B96: молоко | D96: 10 | E96: 10
B97: масло сливочное | D97: 1.1 | E97: 1.1
B98: Мука пшеничная | D98: 1.1 | E98: 1.1
B99: Вода | D99: 10 | E99: 10
B100: Сахар | D100: 0.2 | E100: 0.2
B101: соль иодированная | D101: 0.13 | E101: 0.13
B102: масса соуса | E102: 20
A103: Пюре Картофельное | C103: 140 | F103: 2.86 | G103: 4.48 | H103: 19.08 | I103: 128.10 | J103: 16.96 | K103: №339 СБ дошк 2016
B104: Картофель | D104: 159.60 | E104: 119.70
B105: Молоко | D105: 22.12 | E105: 21.00
B106: Масло сливочное | D106: 5.00 | E106: 5.00
B107: соль иодированная | D107: 0.52 | E107: 0.52
A108: Чай с сахаром | C108: 180/6 | F108: 0.06 | G108: 0.02 | H108: 6.01 | I108: 23.94 | J108: 0.03 | K108: №410, 411 Дели 2016
B109: чай весовой | D109: 0.45 | E109: 0.45
B110: сахар | D110: 6.00 | E110: 6.00
B111: Вода | D111: 180.00 | E111: 180.00
A112: Кондитерское изделие | B112: вафли | C112: 20 | D112: 20.00 | E112: 20.00 | F112: 0.75 | G112: 6.10 | H112: 12.50 | I112: 108.50 | K112: табл 6 стр 136, Дели +, 2012
A113: Хлеб пшеничный | C113: 30 | D113: 30.00 | E113: 30.00 | F113: 2.28 | G113: 0.24 | H113: 14.76 | I113: 70.50 | J113: 0.00 | K113: табл 6 стр 134, Дели +, 2012
A114: Фрукты свежие | C114: 100 | D114: 100 | E114: 100 | F114: 0.40 | G114: 0.40 | H114: 9.80 | I114: 47.00 | J114: 10.00 | K114: №386 СБ
A115: (яблоки,или апельсин, или банан,или мандарин ) | K115: дошк. 2016
A116: Итого: | C116: 556 | F116: =F85+F103+F108+F112+F113+F114 -> 18.32 | G116: =G85+G103+G108+G112+G113+G114 -> 15.15 | H116: 68.02 | I116: 484.71 | J116: 27.45
A117: ВСЕГО: | C117: =C31+C36+C83+C116 -> 1851 | F117: =F31+F36+F83+F116 -> 62.28 | G117: =G31+G36+G83+G116 -> 60.08 | H117: =H31+H36+H83+H116 -> 230.17 | I117: =I31+I36+I83+I116 -> 1717.53 | J117: =J31+J36+J83+J116 -> 39.84
A119: День 2- ой
A120: Наименование блюд и | C120: Масса | D120: Кол - во | E120: Кол - во | F120: Пищевые вещества | I120: Энергетическая | J120: Витамин | K120: Сборник
A121: продуктов | C121: порции | D121: (в гр ) | E121: (в гр ) | I121: ценность | K121: рецептур
D122: брутто | E122: нетто | F122: белки | G122: жиры | H122: угл-ды | I122: Ккал | J122: С
B123: ЗАВТРАК
A124: Каша полбяная молочная с маслом сливочным | C124: 180/3 | F124: 4.81 | G124: 7.85 | H124: 29.38 | I124: 207.32 | J124: 0.86 | K124: ТТК №1Д
B125: Крупа полбяная | D125: 22.50 | E125: 22.50
B126: Молоко | D126: 90.00 | E126: 90.00
B127: вода | D127: 68.00 | E127: 68.00
B128: Сахар | D128: 2.50 | E128: 2.50
B129: соль иодированная | D129: 0.50 | E129: 0.50
B130: Масло сливочное | D130: 3.00 | E130: 3.00
A131: Какао с молоком | C131: 180/6 | F131: 3.67 | G131: 3.19 | H131: 10.87 | I131: 90.78 | J131: 1.43 | K131: №416 Дели 2016
B132: Какао-порошок | D132: 2.00 | E132: 2.00
B133: Сахар | D133: 6.00 | E133: 6.00
B134: Молоко | D134: 110.00 | E134: 110.00
B135: Вода | D135: 80.00 | E135: 80.00
A136: Бутерброд с маслом сливочным | C136: 30/5 | F136: 2.29 | G136: 4.50 | H136: 15.49 | I136: 111.68 | K136: №1 Дели 2010
B137: Батон нарезной | D137: 30.00 | E137: 30.00
B138: Масло сливочное | D138: 5.00 | E138: 5.00
A139: Итого: | C139: 404 | F139: =SUM(F124:F138) -> 10.77 | G139: =SUM(G124:G138) -> 15.54 | H139: 55.74 | I139: 409.78 | J139: 2.29
B140: 2 - ой ЗАВТРАК
A141: Кисломолочный напиток | C141: 180 | F141: 5.22 | G141: 4.50 | H141: 7.56 | I141: 92.00 | J141: 0.45 | K141: №420 СБ дошк 2016
A142: (Кефир,ряженка,катык) | B142: кисломолочный напиток | D142: 185 | E142: 180
A143: Итого: | C143: 180 | F143: =F141 -> 5.22 | G143: =G141 -> 4.50 | H143: =H141 -> 7.56 | I143: =I141 -> 92.00 | J143: =J141 -> 0.45
B144: ОБЕД
A145: Салат с картофелем и солеными огурцами | C145: 60 | F145: 0.73 | G145: 4.70 | H145: 5.38 | I145: 66.83 | K145: №23 сб дошколь. 2016
B146: Картофель | D146: 32.90 | E146: 24.00
B147: морковь | D147: 15.36 | E147: 12.00
B148: огурцы соленые | D148: 32.76 | E148: 18.00
B149: лук репчатый | D149: 3.60 | E149: 3.60
B150: масло растительное | D150: 3.00 | E150: 3.00
A151: Борщ со свежей капустой, картофелем на курином бульоне , со сметаной | C151: 180/7 | F151: 1.48 | G151: 4.59 | H151: 8.12 | I151: 85.97 | J151: 7.71 | K151: №63 сб дошк 2016
B152: Капуста свежая | D152: 20.00 | E152: 16.00
B153: Картофель | D153: 21.28 | E153: 16.00
B154: Морковь | D154: 12.50 | E154: 10.00
B155: Лук репчатый | D155: 9.52 | E155: 8.00
B156: Свекла | D156: 41.00 | E156: 32.00
B157: Сахар | D157: 0.20 | E157: 0.20
B158: Томат-паста | D158: 2.00 | E158: 2.00
B159: Масло растительное | D159: 4.00 | E159: 4.00
B160: соль иодированная | D160: 0.70 | E160: 0.70
B161: Бульон | D161: 140.00 | E161: 140.00
B162: Сметана | D162: 7.00 | E162: 7.00
A163: Плов из отварной птицы | C163: 200 | F163: 11.19 | G163: 10.93 | H163: 31.80 | I163: 282.55 | J163: 0.18 | K163: №321 сб дошк 2016
B164: цыплята-бройлеры с/м | D164: 78.00 | E164: 73.6
B165: масса отварной птицы | E165: 32.0
B166: масло сливочное | D166: 8.0 | E166: 8.0
B167: Лук репчатый | D167: 11.9 | E167: 10.00
B168: Морковь | D168: 16.3 | E168: 13.00
B169: Крупа рисовая | D169: 55.0 | E169: 55.0
B170: вода | D170: 86.0 | E170: 86.0
B171: соль иодированная | D171: 0.8 | E171: 0.8
B172: масса гарнира | E172: 168.0
A173: Компот из свежих яблок | C173: 180 | F173: 0.14 | G173: 0.14 | H173: 25.09 | I173: 103.14 | J173: 0.81 | K173: №342 сб шк 2017
B174: яблоки свежие | D174: 34.00 | E174: 30.00
B175: сахар | D175: 6.00 | E175: 6.00
B176: вода | D176: 183.00 | E176: 183.00
A177: Хлеб пшеничный | C177: 25 | D177: 25.00 | E177: 25.00 | F177: 1.90 | G177: 0.20 | H177: 12.30 | I177: 58.75 | J177: 0.00 | K177: табл 6 стр 134, Дели +, 2012
A178: Хлеб ржаной | C178: 45 | D178: 45.00 | E178: 45.00 | F178: 2.97 | G178: 0.54 | H178: 17.84 | I178: 89.19 | K178: табл 6 стр 144, Дели +, 2012
A179: Итого: | C179: =C178+C177+C173+C163+187+C145 -> 697 | F179: =F178+F177+F173+F163+F151+F145 -> 18.41 | G179: =G178+G177+G173+G163+G151+G145 -> 21.10 | H179: 100.53 | I179: 686.43 | J179: 8.70
B180: УПЛОТНЕННЫЙ ПОЛДНИК
A181: Запеканка творожная с молоком сгущенным | C181: 130/20 | F181: 24.20 | G181: 20.06 | H181: 32.78 | I181: 408.20 | J181: 0.54 | K181: №251, сб дошк 2016
B182: Творог | D182: 121.55 | E182: 119.20
B183: Крупа манная | D183: 7.80 | E183: 7.80
B184: Яйцо | D184: 6.50 | E184: 5.42
B185: Сахар | D185: 10.40 | E185: 10.40
B186: Сметана | D186: 5.20 | E186: 5.20
B187: Масло сливочное | D187: 5.20 | E187: 5.20
B188: Сухари панировочные | D188: 5.20 | E188: 5.20
B189: соль иодированная | D189: 0.65 | E189: 0.65
B190: молоко сгущенное | D190: 20.40 | E190: 20.00
A191: Чай с сахаром и лимоном | C191: 180/6/7 | F191: 0.13 | G191: 0.03 | H191: 6.23 | I191: 26.48 | J191: 2.83 | K191: №412 Дели 2016
B192: чай весовой | D192: 0.45 | E192: 0.45
B193: Сахар | D193: 6.00 | E193: 6.00
B194: лимон | D194: 8.00 | E194: 7.00
B195: Вода | D195: 180.00 | E195: 180.00
A196: Булочка дорожная | C196: 50 | F196: 3.39 | G196: 6.98 | H196: 26.07 | I196: 181.00 | K196: №453 сб дошк 2016
B197: Мука пшеничная | D197: 30.50 | E197: 30.00
B198: мука пшеничная на подпыл | D198: 1.00 | E198: 1.00
B199: Сахар | D199: 6.00 | E199: 6.00
B200: Масло сливочное | D200: 6.50 | E200: 6.50
B201: соль иодированная | D201: 0.30 | E201: 0.30
B202: дрожжи сухие | D202: 0.20 | E202: 0.20
B203: вода | D203: 15.30 | E203: 15.30
... 972 more rows

Sheet Меню РОТАЦИЯ (hidden)
A1: МЕНЮ-РОТАЦИЯ 12ч с УП (12 дн)
A2: День 1 - ый | B2: День 2- ой | C2: День 3 - ий | D2: День 4 - ый | E2: День 5 - ый | F2: День 6 - ый
A3: Наименование блюд и продуктов | B3: Наименование блюд и продуктов | C3: Наименование блюд и продуктов | D3: Наименование блюд и продуктов | E3: Наименование блюд и продуктов | F3: Наименование блюд и продуктов
A4: ЗАВТРАК
A5: Каша "Дружба" молочная с маслом сливочным | B5: Каша полбяная молочная с маслом сливочным | C5: Каша ячневая молочная с маслом сливочным | D5: Каша геркулесовая молочная с маслом сливочным | E5: Суп молочный со звездочками | F5: Каша пшенная молочная с маслом сливочным
A6: Кофейный напиток с молоком | B6: Какао с молоком | C6: Чай с молоком,сахаром | D6: Кофейный напиток с молоком | E6: Какао с молоком | F6: Чай с молоком,сахаром
A7: Бутерброд с сыром, маслом сливочным | B7: Бутерброд с маслом сливочным | C7: Бутерброд с маслом сливочным | D7: Бутерброд с сыром, маслом сливочным | E7: Бутерброд с маслом сливочным | F7: Бутерброд с сыром, маслом сливочным
A8: Итого: | B8: Итого: | C8: Итого: | D8: Итого: | E8: Итого: | F8: Итого:
A9: 2 - ой ЗАВТРАК
A10: Кисломолочный напиток с сахаром (кефир) | B10: Кисломолочный напиток (ряженка) | C10: Кисломолочный напиток (катык) | D10: Кисломолочный напиток (ряженка) | E10: Кисломолочный напиток с сахаром (кефир) | F10: Кисломолочный напиток (катык)
A11: Итого: | B11: Итого: | C11: Итого: | D11: Итого: | E11: Итого: | F11: Итого:
A12: ОБЕД
A13: Салат из припущенной моркови с яблоками | B13: Салат из картофеля с солеными огурцами | C13: Салат из квашеной капусты | D13: Салат из зеленого горошка к/с | E13: Салат из свеклы отварной с маслом растительным | F13: Салат из картофеля с зеленым горошком к/с
A14: Суп вермишелевый с картофелем с мясными фрикадельками | B14: Борщ со свежей капустой, картофелем на курином бульоне, со сметаной | C14: Суп картофельный с пшенной крупой на бульоне из индейки | D14: Суп гороховый с картофелем, на курином бульоне | E14: Рассольник домашний, с мясными фрикадельками, и со сметаной | F14: Борщ со свежей капустой, картофелем на курином бульоне , со сметаной
A15: Котлеты рубленые из говядины | B15: Плов из отварной птицы | C15: Гуляш из отварной индейки | D15: Фрикадельки из птицы | E15: Запеканка картофельная с мясом со сметанным соусом | F15: Тефтели куриные запеченные в сметанно-томатном соусе
A16: Каша гречневая рассыпчатая с овощами с маслом сливочным | C16: Макаронные изделия отварные с маслом сливочным | D16: Овощное рагу | F16: Вермишель отварная
A17: Напиток из сухофруктов | B17: Компот из свежих яблок | C17: Кисель | D17: Компот из урюка | E17: Компот из изюма и яблок | F17: Напиток из сухофруктов
A18: Хлеб пшеничный | B18: Хлеб пшеничный | C18: Хлеб пшеничный | D18: Хлеб пшеничный
A19: Хлеб ржаной | B19: Хлеб ржаной | C19: Хлеб ржаной | D19: Хлеб ржаной | E19: Хлеб ржаной | F19: Хлеб ржаной
A20: Итого: | B20: Итого: | C20: Итого: | D20: Итого: | E20: Итого: | F20: Итого:
A21: УПЛОТНЕННЫЙ ПОЛДНИК
A22: Пудинг рыбный | B22: Запеканка творожная с молоком сгущенным | C22: Биточки рубленые из рыбы с овощами | D22: Эч-почмак с мясным фаршем | E22: Омлет натуральный | F22: Биточки рубленые из рыбы
A23: Пюре Картофельное | C23: Картофель запеченный | F23: Рис отварной рассыпчатый с маслом сливочным
A24: Чай с сахаром | B24: Чай с сахаром и лимоном | C24: Напиток из шиповника | D24: Чай с сахаром | E24: Чай с сахаром и лимоном | F24: Чай с мармеладом
A25: Кондитерское изделие (вафли) | B25: Булочка дорожная | C25: Кондитерское изделие (печенье)
A26: Хлеб пшеничный | C26: Хлеб пшеничный | E26: Хлеб пшеничный | F26: Хлеб пшеничный
A27: Фрукты свежие (яблоки) | B27: Сок в инд упаковке/разливной | C27: Фрукты свежие (яблоки) | D27: Сок в инд упаковке/разливной | E27: Фрукты свежие (яблоки) | F27: Сок в инд упаковке/разливной
A28: Итого: | B28: Итого: | C28: Итого: | D28: Итого: | E28: Итого: | F28: Итого:
A29: ВСЕГО: | B29: ВСЕГО: | C29: ВСЕГО: | D29: ВСЕГО: | E29: ВСЕГО: | F29: ВСЕГО:
A31: День 7- ой | B31: День 8 - ой | C31: День 9- ый | D31: День 10 - ый | E31: День 11 - ый | F31: День 12 - ый
A32: Наименование блюд и продуктов | B32: Наименование блюд и продуктов | C32: Наименование блюд и продуктов | D32: Наименование блюд и продуктов | E32: Наименование блюд и продуктов | F32: Наименование блюд и продуктов
A33: ЗАВТРАК
A34: Каша ячневая молочная с маслом сливочным | B34: Каша манная молочная с маслом сливочным | C34: Каша пшеничная молочная с маслом сливочным | D34: Каша Геркулесовая молочная с маслом сливочным | E34: Суп молочный с клецками | F34: Каша кукурузная молочная с маслом сливочным
A35: Кофейный напиток с молоком | B35: Какао с молоком | C35: Чай с молоком,сахаром | D35: Кофейный напиток с молоком | E35: Чай с сахаром | F35: Чай с молоком, сахаром
A36: Бутерброд с маслом сливочным | B36: Бутерброд с маслом сливочным | C36: Бутерброд с сыром, с маслом сливочным | D36: Бутерброд с маслом сливочным | E36: Бутерброд с сыром, с маслом сливочным | F36: Бутерброд с маслом сливочным
A37: Итого: | B37: Итого: | C37: Итого: | D37: Итого: | E37: Итого | F37: Итого
A38: 2 - ой ЗАВТРАК
A39: Кисломолочный напиток (ряженка) | B39: Кисломолочный напиток (кефир) | C39: Молоко кипяченое | D39: Кисломолочный напиток (катык) | E39: Кисломолочный напиток (ряженка) | F39: Молоко кипяченое
A40: Итого: | B40: Итого: | C40: Итого: | D40: Итого: | E40: Итого | F40: Итого
A41: ОБЕД
A42: Капуста тушеная (доп. гарнир) | B42: Салат из припущенной моркови с яблоками | C42: Винегрет овощной | D42: Салат из квашеной капусты | E42: Салат из зеленого горошка к/с | F42: Салат из свеклы отварной с маслом растительным
A43: Суп картофельный с клецками с мясными фрикадельками | B43: Щи со свежей капустой с картофелем на курином бульоне, со сметаной | C43: Рассольник ленинградский на бульоне из индейки, со сметаной | D43: Суп-лапша домашняя на курином бульоне | E43: Суп картофельный с мясными фрикадельками | F43: Суп гороховый,на курином бульоне,с гренками
A44: Котлеты рубленые из говядины | B44: Биточки "Домашние" | C44: Индейка тушеная с овощами по-татарски | D44: Жаркое с мясом птицы | E44: Тефтели мясные | F44: Суфле куриное с рисом
A45: Пюре Картофельное | B45: Каша гречневая рассыпчатая с овощами с маслом сливочным | C45: Макаронные изделия отварные | E45: Овощное рагу | F45: Картофель запеченный
A46: Компот из свежих яблок | B46: Компот из урюка | C46: Кисель | D46: Компот из изюма и яблок | E46: Напиток из сухофруктов | F46: Компот из урюка
B47: Хлеб пшеничный | D47: Хлеб пшеничный | F47: Хлеб пшеничный
A48: Хлеб ржаной | B48: Хлеб ржаной | C48: Хлеб ржаной | D48: Хлеб ржаной | E48: Хлеб ржаной | F48: Хлеб ржаной
A49: Итого: | B49: Итого: | C49: Итого: | D49: Итого: | E49: Итого | F49: Итого
A50: УПЛОТНЕННЫЙ ПОЛДНИК
A51: Пудинг творожный с повидлом | B51: Омлет натуральный | C51: Запеканка творожная с молоком сгущенным | D51: Котлеты рыбные | E51: Омлет натуральный | F51: Ватрушка королевская
D52: Рис отварной рассыпчатый с маслом сливочным
B53: Хлеб пшеничный | D53: Хлеб пшеничный | E53: Хлеб пшеничный
A54: Напиток из шиповника | B54: Чай с сахаром | C54: Чай с сахаром и лимоном | D54: Напиток из шиповника | E54: Чай с мармеладом | F54: Чай с яблоком и сахаром
B55: Слойка сладкая | D55: Кондитерское изделие (печенье) | E55: Булочка "Российская"
A56: Фрукты свежие (яблоки) | B56: Сок в инд упаковке/разливной | C56: Фрукты свежие (яблоки) | D56: Сок в инд упаковке/разливной | E56: Банан | F56: Сок
A57: Итого: | B57: Итого: | C57: Итого: | D57: Итого: | E57: Итого | F57: Итого
A58: ВСЕГО: | B58: ВСЕГО: | C58: ВСЕГО: | D58: ВСЕГО: | E58: ВСЕГО | F58: ВСЕГО
